[Event "European Online Club-ch-C 2021"]
[Site "Online"]
[Date "2021.03.27"]
[Round "3.2"]
[White "Okuyaz, Duru"]
[Black "Heimann, Andreas"]
[Result "0-1"]
[ECO "B51"]
[WhiteElo "2076"]
[BlackElo "2606"]
[Annotator "ChessBase"]
[PlyCount "108"]
[EventDate "2021.03.27"]
[EventType "team-tourn"]
[EventCountry "NET"]
[SourceTitle "playchess.com"]
[Source "ChessBase"]
[SourceQuality "1"]
[TimeControl "900+5"]

1. e4 {[%emt 0:00:00]} c5 {[%emt 0:00:06]} 2. Nf3 {[%emt 0:00:02]} d6 {[%emt 0:00:02]} 3. Bb5+ {[%emt 0:00:02]} Nd7 {[%emt 0:00:02]} 4. d4 {[%emt 0:00:02]} cxd4 {[%emt 0:00:08]} 5. Qxd4 {[%emt 0:00:01]} a6 {[%emt 0:00:01]} 6. Bxd7+ {[%emt 0:00:01]} Bxd7 {[%emt 0:00:02]} 7. c4 {[%emt 0:00:02]} Nf6 {[%emt 0:00:05]} 8. Nc3 {[%emt 0:00:01]} e6 {[%emt 0:00:05]} 9. O-O {[%emt 0:00:03]} Bc6 {[%emt 0:00:15]} 10. a4 {[%emt 0:00:34]} Qa5 {[%emt 0:00:16]} 11. Bd2 {[%emt 0:00:52]} Qc5 {[%emt 0:00:05]} 12. Qd3 {[%emt 0:00:20]} Be7 {[%emt 0:00:09]} 13. b4 {[%emt 0:00:33]} Qh5 {[%emt 0:00:03]} 14. b5 {[%emt 0:01:07]} Bd7 {[%emt 0:00:04]} 15. a5 {[%emt 0:00:15]} O-O {[%emt 0:00:03]} 16. e5 {[%emt 0:00:59]} dxe5 {[%emt 0:00:06]} 17. Ne4 {[%emt 0:00:37]} Rfd8 {[%emt 0:00:39]} 18. Ng3 {[%emt 0:01:40]} e4 {[%emt 0:00:04]} 19. Qc2 {[%emt 0:02:13]} Qc5 {[%emt 0:00:21]} 20. Be3 {[%emt 0:00:11]} Qc8 {[%emt 0:00:07]} 21. Nxe4 {[%emt 0:02:22]} Bxb5 {[%emt 0:00:43]} 22. Rfc1 {[%emt 0:01:44]} Bc6 {[%emt 0:00:56]} 23. Ned2 {[%emt 0:00:29]} Nd7 {[%emt 0:02:24]} 24. c5 {[%emt 0:00:39]} Qc7 {[%emt 0:00:16]} 25. Ne4 {[%emt 0:00:52]} Nf6 {[%emt 0:00:23]} 26. Ned2 {[%emt 0:00:36]} Ng4 {[%emt 0:00:12]} 27. Rab1 {[%emt 0:00:42]} Rac8 {[%emt 0:01:48]} 28. h3 {[%emt 0:00:02]} Nxe3 {[%emt 0:00:03]} 29. fxe3 {[%emt 0:00:01]} Qxa5 {[%emt 0:01:42]} 30. Ne4 {[%emt 0:00:13]} Qa3 {[%emt 0:01:04]} 31. Re1 {[%emt 0:00:09]} Qd3 {[%emt 0:00:31]} 32. Qxd3 {[%emt 0:00:03]} Rxd3 {[%emt 0:00:00]} 33. Nf2 {[%emt 0:00:02]} Rd7 {[%emt 0:00:07]} 34. Ne5 {[%emt 0:00:02]} Rdc7 {[%emt 0:00:19]} 35. Nfd3 {[%emt 0:00:10]} Bb5 {[%emt 0:00:06]} 36. Red1 {[%emt 0:00:06]} f6 {[%emt 0:00:05]} 37. Nf3 {[%emt 0:00:03]} e5 {[%emt 0:00:01]} 38. Nb4 {[%emt 0:00:02]} Bxc5 {[%emt 0:00:11]} 39. Nd5 {[%emt 0:00:02]} Rc6 {[%emt 0:00:30]} 40. Kh1 {[%emt 0:00:03]} Bf8 {[%emt 0:00:08]} 41. e4 {[%emt 0:00:01]} Kf7 {[%emt 0:00:07]} 42. Nd2 {[%emt 0:00:02]} Rc2 {[%emt 0:00:21]} 43. Nb3 {[%emt 0:00:05]} Be2 {[%emt 0:00:11]} 44. Re1 {[%emt 0:00:04]} Bb5 {[%emt 0:00:29]} 45. Na5 {[%emt 0:00:04]} Rb8 {[%emt 0:00:15]} 46. Rec1 {[%emt 0:00:02]} Rxc1+ {[%emt 0:00:03]} 47. Rxc1 {[%emt 0:00:01]} Bd6 {[%emt 0:00:03]} 48. Nb6 {[%emt 0:00:03]} Ke6 {[%emt 0:00:07]} 49. Nc8 {[%emt 0:00:17]} Ba3 {[%emt 0:00:30]} 50. Rc2 {[%emt 0:00:09]} b6 {[%emt 0:00:09]} 51. Nb3 {[%emt 0:00:09]} Ba4 {[%emt 0:00:12]} 52. Rc3 {[%emt 0:00:03]} Bxb3 {[%emt 0:00:03]} 53. Rxb3 {[%emt 0:00:01]} Rxc8 {[%emt 0:00:01]} 54. Rxa3 {[%emt 0:00:02]} a5 {[%emt 0:00:01]} 0-1

[Event "European Online Club-ch-C 2021"]
[Site "Online"]
[Date "2021.03.27"]
[Round "3.3"]
[White "Keymer, Vincent"]
[Black "Gallevci, Yagiz"]
[Result "1-0"]
[ECO "A11"]
[WhiteElo "2591"]
[BlackElo "2069"]
[Annotator "ChessBase"]
[PlyCount "65"]
[EventDate "2021.03.27"]
[EventType "team-tourn"]
[EventCountry "NET"]
[SourceTitle "playchess.com"]
[Source "ChessBase"]
[SourceQuality "1"]
[TimeControl "900+5"]

1. Nf3 {[%emt 0:00:00]} d5 {[%emt 0:00:07]} 2. e3 {[%emt 0:00:02]} Nf6 {[%emt 0:00:07]} 3. c4 {[%emt 0:00:02]} c6 {[%emt 0:00:06]} 4. Nc3 {[%emt 0:00:03]} e6 {[%emt 0:00:31]} 5. b3 {[%emt 0:00:02]} Bd6 {[%emt 0:00:02]} 6. Bb2 {[%emt 0:00:02]} O-O {[%emt 0:00:01]} 7. h3 {[%emt 0:00:01]} Qe7 {[%emt 0:00:23]} 8. g4 {[%emt 0:01:04]} Nbd7 {[%emt 0:03:03]} 9. Qc2 {[%emt 0:00:35]} b6 {[%emt 0:01:19]} 10. g5 {[%emt 0:00:52]} Nh5 {[%emt 0:00:25]} 11. O-O-O {[%emt 0:00:03]} Bb7 {[%emt 0:00:31]} 12. d4 {[%emt 0:00:19]} Rac8 {[%emt 0:00:32]} 13. Kb1 {[%emt 0:00:13]} e5 {[%emt 0:02:39]} 14. dxe5 {[%emt 0:00:49]} Nxe5 {[%emt 0:00:04]} 15. Be2 {[%emt 0:00:01]} g6 {[%emt 0:01:52]} 16. Nxe5 {[%emt 0:01:23]} Bxe5 {[%emt 0:00:00]} 17. Bxh5 {[%emt 0:00:02]} gxh5 {[%emt 0:00:01]} 18. Qf5 {[%emt 0:00:54]} Qe6 {[%emt 0:00:31]} 19. Qf3 {[%emt 0:02:21]} dxc4 {[%emt 0:01:53]} 20. bxc4 {[%emt 0:02:02]} Qxc4 {[%emt 0:01:22]} 21. Qe4 {[%emt 0:00:06]} Qe6 {[%emt 0:00:24]} 22. f4 {[%emt 0:00:07]} Bxc3 {[%emt 0:00:02]} 23. Qxe6 {[%emt 0:00:01]} fxe6 {[%emt 0:00:02]} 24. Bxc3 {[%emt 0:00:01]} c5 {[%emt 0:00:08]} 25. Rd7 {[%emt 0:00:19]} Be4+ {[%emt 0:00:08]} 26. Kb2 {[%emt 0:00:04]} Rf7 {[%emt 0:00:03]} 27. Rhd1 {[%emt 0:00:03]} Bd5 {[%emt 0:00:24]} 28. Rd6 {[%emt 0:00:37]} Rc6 {[%emt 0:00:25]} 29. R1xd5 {[%emt 0:00:04]} Rxd6 {[%emt 0:00:13]} 30. Rxd6 {[%emt 0:00:02]} Re7 {[%emt 0:00:01]} 31. Bf6 {[%emt 0:00:03]} Rb7 {[%emt 0:00:04]} 32. Rxe6 {[%emt 0:00:03]} Kf7 {[%emt 0:00:01]} 33. f5 {[%emt 0:00:08]} 1-0

[Event "European Online Club-ch-C 2021"]
[Site "Online"]
[Date "2021.03.27"]
[Round "3.4"]
[White "Yagiz, Bora"]
[Black "Kollars, Dmitrij"]
[Result "0-1"]
[ECO "C68"]
[WhiteElo "1877"]
[BlackElo "2598"]
[Annotator "ChessBase"]
[PlyCount "48"]
[EventDate "2021.03.27"]
[EventType "team-tourn"]
[EventCountry "NET"]
[SourceTitle "playchess.com"]
[Source "ChessBase"]
[SourceQuality "1"]
[TimeControl "900+5"]

1. e4 {[%emt 0:00:00]} e5 {[%emt 0:00:03]} 2. Nf3 {[%emt 0:00:21]} Nc6 {[%emt 0:00:02]} 3. Bb5 {[%emt 0:00:06]} a6 {[%emt 0:00:03]} 4. Bxc6 {[%emt 0:00:05]} dxc6 {[%emt 0:00:00]} 5. Nc3 {[%emt 0:00:06]} f6 {[%emt 0:00:21]} 6. d4 {[%emt 0:00:21]} exd4 {[%emt 0:00:04]} 7. Qxd4 {[%emt 0:00:01]} Qxd4 {[%emt 0:00:19]} 8. Nxd4 {[%emt 0:00:02]} Bd7 {[%emt 0:00:02]} 9. Be3 {[%emt 0:00:03]} O-O-O {[%emt 0:00:02]} 10. O-O-O {[%emt 0:00:01]} Bb4 {[%emt 0:00:19]} 11. Nde2 {[%emt 0:00:47]} Ne7 {[%emt 0:00:09]} 12. f3 {[%emt 0:00:16]} Ng6 {[%emt 0:00:53]} 13. a3 {[%emt 0:02:01]} Bd6 {[%emt 0:00:06]} 14. Na4 {[%emt 0:00:16]} Kb8 {[%emt 0:02:11]} 15. Nb6 {[%emt 0:05:31]} Be6 {[%emt 0:02:45]} 16. Na4 {[%emt 0:00:30]} Rhe8 {[%emt 0:00:45]} 17. Nc5 {[%emt 0:04:14]} Bc8 {[%emt 0:00:09]} 18. Ng3 {[%emt 0:01:10]} Nh4 {[%emt 0:01:04]} 19. Rhg1 {[%emt 0:00:33]} h6 {[%emt 0:00:02]} 20. Bf2 {[%emt 0:00:05]} Nxg2 {[%emt 0:00:20]} 21. Nd3 {[%emt 0:00:07]} Nf4 {[%emt 0:00:30]} 22. Kb1 {[%emt 0:00:08]} Nh3 {[%emt 0:00:04]} 23. Be3 {[%emt 0:00:05]} Nxg1 {[%emt 0:00:02]} 24. Rxg1 {[%emt 0:00:01]} f5 {[%emt 0:00:10]} 0-1

[Event "European Online Club-ch-C 2021"]
[Site "Online"]
[Date "2021.03.27"]
[Round "3.9"]
[White "Delgado Ramirez, Neuris"]
[Black "Micottis, Dorian"]
[Result "1/2-1/2"]
[ECO "B10"]
[WhiteElo "2615"]
[BlackElo "2223"]
[Annotator "ChessBase"]
[PlyCount "104"]
[EventDate "2021.03.27"]
[EventType "team-tourn"]
[EventCountry "NET"]
[SourceTitle "playchess.com"]
[Source "ChessBase"]
[SourceQuality "1"]
[TimeControl "900+5"]

1. e4 {[%emt 0:00:00]} c6 {[%emt 0:00:02]} 2. c4 {[%emt 0:00:03]} d5 {[%emt 0:00:07]} 3. cxd5 {[%emt 0:00:03]} cxd5 {[%emt 0:00:01]} 4. exd5 {[%emt 0:00:02]} Nf6 {[%emt 0:00:02]} 5. Nc3 {[%emt 0:00:02]} Nxd5 {[%emt 0:00:03]} 6. Nf3 {[%emt 0:00:03]} Nc6 {[%emt 0:00:04]} 7. Bc4 {[%emt 0:00:04]} Nb6 {[%emt 0:00:05]} 8. Bb3 {[%emt 0:00:04]} Bf5 {[%emt 0:00:08]} 9. d4 {[%emt 0:00:05]} e6 {[%emt 0:00:02]} 10. O-O {[%emt 0:01:12]} Be7 {[%emt 0:00:04]} 11. h3 {[%emt 0:00:03]} O-O {[%emt 0:00:12]} 12. a3 {[%emt 0:00:03]} Bf6 {[%emt 0:00:30]} 13. Be3 {[%emt 0:00:03]} Rc8 {[%emt 0:00:09]} 14. Qe2 {[%emt 0:00:11]} Rc7 {[%emt 0:01:28]} 15. Rad1 {[%emt 0:01:55]} Rd7 {[%emt 0:00:06]} 16. Ne5 {[%emt 0:00:04]} Nxd4 {[%emt 0:02:05]} 17. Bxd4 {[%emt 0:00:08]} Rxd4 {[%emt 0:00:02]} 18. Qe3 {[%emt 0:00:14]} Rxd1 {[%emt 0:01:16]} 19. Rxd1 {[%emt 0:00:04]} Qc7 {[%emt 0:00:03]} 20. f4 {[%emt 0:00:29]} a6 {[%emt 0:02:09]} 21. Rc1 {[%emt 0:00:29]} Bxe5 {[%emt 0:00:28]} 22. fxe5 {[%emt 0:00:05]} Nc4 {[%emt 0:00:52]} 23. Bxc4 {[%emt 0:02:42]} Qxc4 {[%emt 0:00:03]} 24. Ne2 {[%emt 0:00:03]} Qe4 {[%emt 0:00:38]} 25. Kf2 {[%emt 0:00:38]} f6 {[%emt 0:00:50]} 26. exf6 {[%emt 0:00:05]} gxf6 {[%emt 0:01:54]} 27. Nd4 {[%emt 0:01:27]} e5 {[%emt 0:00:53]} 28. Qb3+ {[%emt 0:00:58]} Kh8 {[%emt 0:00:03]} 29. Nf3 {[%emt 0:00:04]} Bd7 {[%emt 0:00:51]} 30. Rc4 {[%emt 0:00:54]} Qd5 {[%emt 0:00:41]} 31. Qb4 {[%emt 0:00:04]} Rg8 {[%emt 0:00:23]} 32. Rh4 {[%emt 0:02:04]} Bc6 {[%emt 0:00:26]} 33. Rg4 {[%emt 0:00:03]} Rxg4 {[%emt 0:00:09]} 34. hxg4 {[%emt 0:00:02]} Kg7 {[%emt 0:00:13]} 35. Nh4 {[%emt 0:00:50]} Kf7 {[%emt 0:00:01]} 36. Kg3 {[%emt 0:00:36]} Qd3+ {[%emt 0:00:21]} 37. Kh2 {[%emt 0:00:03]} Qd4 {[%emt 0:00:05]} 38. Qb3+ {[%emt 0:00:19]} Bd5 {[%emt 0:00:09]} 39. Qc2 {[%emt 0:00:03]} Qxg4 {[%emt 0:00:17]} 40. Qc7+ {[%emt 0:01:01]} Ke8 {[%emt 0:00:07]} 41. Qxh7 {[%emt 0:00:06]} Bc6 {[%emt 0:00:11]} 42. Qh8+ {[%emt 0:00:13]} Ke7 {[%emt 0:00:02]} 43. Qh6 {[%emt 0:00:04]} Qg5 {[%emt 0:00:10]} 44. Qh8 {[%emt 0:00:19]} Kd7 {[%emt 0:00:04]} 45. Kg1 {[%emt 0:00:03]} Kc7 {[%emt 0:00:02]} 46. b4 {[%emt 0:00:01]} Qc1+ {[%emt 0:00:03]} 47. Kh2 {[%emt 0:00:02]} Qg5 {[%emt 0:00:02]} 48. Kg1 {[%emt 0:00:04]} Qc1+ {[%emt 0:00:09]} 49. Kh2 {[%emt 0:00:02]} Qf4+ {[%emt 0:00:01]} 50. Kg1 {[%emt 0:00:04]} Qe3+ {[%emt 0:00:06]} 51. Kh2 {[%emt 0:00:02]} Qf4+ {[%emt 0:00:12]} 52. Kg1 {[%emt 0:00:02]} Qc1+ {[%emt 0:00:01]} 1/2-1/2

[Event "European Online Club-ch-C 2021"]
[Site "Online"]
[Date "2021.03.27"]
[Round "3.10"]
[White "Bruch, Jochen"]
[Black "Martinez Alcantara, Jose Eduardo"]
[Result "0-1"]
[ECO "A30"]
[WhiteElo "2187"]
[BlackElo "2620"]
[Annotator "ChessBase"]
[PlyCount "96"]
[EventDate "2021.03.27"]
[EventType "team-tourn"]
[EventCountry "NET"]
[SourceTitle "playchess.com"]
[Source "ChessBase"]
[SourceQuality "1"]
[TimeControl "900+5"]

1. Nf3 {[%emt 0:00:00]} Nf6 {[%emt 0:00:08]} 2. g3 {[%emt 0:00:03]} b6 {[%emt 0:00:04]} 3. Bg2 {[%emt 0:00:04]} Bb7 {[%emt 0:00:02]} 4. O-O {[%emt 0:00:03]} g6 {[%emt 0:00:02]} 5. c4 {[%emt 0:00:05]} Bg7 {[%emt 0:00:02]} 6. Nc3 {[%emt 0:00:03]} O-O {[%emt 0:00:01]} 7. d3 {[%emt 0:00:06]} c5 {[%emt 0:00:25]} 8. Bf4 {[%emt 0:00:07]} d5 {[%emt 0:00:16]} 9. cxd5 {[%emt 0:01:07]} Nxd5 {[%emt 0:00:04]} 10. Bd2 {[%emt 0:00:02]} e6 {[%emt 0:00:40]} 11. Qc1 {[%emt 0:00:53]} Nd7 {[%emt 0:00:52]} 12. Bh6 {[%emt 0:00:18]} N7f6 {[%emt 0:00:32]} 13. Bxg7 {[%emt 0:00:08]} Kxg7 {[%emt 0:00:02]} 14. Qd2 {[%emt 0:00:22]} Qe7 {[%emt 0:00:29]} 15. Rac1 {[%emt 0:00:12]} e5 {[%emt 0:00:58]} 16. a3 {[%emt 0:01:48]} Rad8 {[%emt 0:01:50]} 17. Rfd1 {[%emt 0:01:35]} c4 {[%emt 0:01:11]} 18. Qg5 {[%emt 0:03:26]} cxd3 {[%emt 0:00:59]} 19. Rxd3 {[%emt 0:04:02]} Rfe8 {[%emt 0:03:22]} 20. Nxd5 {[%emt 0:01:41]} Bxd5 {[%emt 0:00:07]} 21. Nh4 {[%emt 0:00:05]} Kf8 {[%emt 0:02:59]} 22. Qh6+ {[%emt 0:00:21]} Kg8 {[%emt 0:00:02]} 23. Qg5 {[%emt 0:00:02]} e4 {[%emt 0:01:00]} 24. Rdd1 {[%emt 0:00:06]} Qe5 {[%emt 0:00:04]} 25. Qxe5 {[%emt 0:00:10]} Rxe5 {[%emt 0:00:01]} 26. Bf1 {[%emt 0:00:08]} e3 {[%emt 0:00:06]} 27. f4 {[%emt 0:00:03]} Ree8 {[%emt 0:00:02]} 28. Ng2 {[%emt 0:00:03]} Ng4 {[%emt 0:00:13]} 29. Rd3 {[%emt 0:00:03]} Bxg2 {[%emt 0:00:32]} 30. Rxd8 {[%emt 0:00:05]} Rxd8 {[%emt 0:00:02]} 31. Kxg2 {[%emt 0:00:02]} Rd2 {[%emt 0:00:02]} 32. Kf3 {[%emt 0:00:02]} Nxh2+ {[%emt 0:00:02]} 33. Kxe3 {[%emt 0:00:03]} Nxf1+ {[%emt 0:00:02]} 34. Rxf1 {[%emt 0:00:04]} Rxb2 {[%emt 0:00:02]} 35. Ra1 {[%emt 0:00:03]} Rb3+ {[%emt 0:00:04]} 36. Kf2 {[%emt 0:00:02]} f5 {[%emt 0:00:03]} 37. a4 {[%emt 0:00:03]} a5 {[%emt 0:00:12]} 38. Rc1 {[%emt 0:00:03]} Rb4 {[%emt 0:00:02]} 39. Rc6 {[%emt 0:00:03]} Kf7 {[%emt 0:00:02]} 40. Rc7+ {[%emt 0:00:10]} Ke6 {[%emt 0:00:02]} 41. Rxh7 {[%emt 0:00:02]} Rxa4 {[%emt 0:00:05]} 42. Rc7 {[%emt 0:00:04]} Rb4 {[%emt 0:00:03]} 43. Rc6+ {[%emt 0:00:03]} Kf7 {[%emt 0:00:03]} 44. Ke3 {[%emt 0:00:02]} a4 {[%emt 0:00:08]} 45. Kd2 {[%emt 0:00:03]} b5 {[%emt 0:00:04]} 46. Kc2 {[%emt 0:00:06]} Rc4+ {[%emt 0:00:09]} 47. Rxc4 {[%emt 0:00:06]} bxc4 {[%emt 0:00:01]} 48. Kc3 {[%emt 0:00:03]} a3 {[%emt 0:00:02]} 0-1

[Event "European Online Club-ch-C 2021"]
[Site "Online"]
[Date "2021.03.27"]
[Round "3.11"]
[White "Gukesh D"]
[Black "Kirsch, Laurent"]
[Result "1-0"]
[ECO "D02"]
[WhiteElo "2563"]
[BlackElo "2120"]
[Annotator "ChessBase"]
[PlyCount "87"]
[EventDate "2021.03.27"]
[EventType "team-tourn"]
[EventCountry "NET"]
[SourceTitle "playchess.com"]
[Source "ChessBase"]
[SourceQuality "1"]
[TimeControl "900+5"]

1. d4 {[%emt 0:00:00]} d5 {[%emt 0:00:03]} 2. Nf3 {[%emt 0:00:03]} Nf6 {[%emt 0:00:03]} 3. Bf4 {[%emt 0:00:02]} c5 {[%emt 0:00:02]} 4. e3 {[%emt 0:00:01]} Nc6 {[%emt 0:00:04]} 5. Nbd2 {[%emt 0:00:03]} Qb6 {[%emt 0:00:04]} 6. dxc5 {[%emt 0:00:08]} Qxb2 {[%emt 0:00:02]} 7. Rb1 {[%emt 0:00:02]} Qc3 {[%emt 0:00:04]} 8. Bb5 {[%emt 0:00:02]} g6 {[%emt 0:00:06]} 9. e4 {[%emt 0:00:28]} dxe4 {[%emt 0:00:04]} 10. Be5 {[%emt 0:00:12]} Qa5 {[%emt 0:00:04]} 11. O-O {[%emt 0:00:44]} exf3 {[%emt 0:00:13]} 12. Bxf6 {[%emt 0:05:38]} exf6 {[%emt 0:00:22]} 13. Qxf3 {[%emt 0:00:04]} Qc7 {[%emt 0:02:27]} 14. Qxf6 {[%emt 0:00:28]} Rg8 {[%emt 0:00:48]} 15. Rfe1+ {[%emt 0:00:59]} Be7 {[%emt 0:00:14]} 16. Qd6 {[%emt 0:00:32]} Qxd6 {[%emt 0:00:26]} 17. cxd6 {[%emt 0:00:03]} Be6 {[%emt 0:00:01]} 18. dxe7 {[%emt 0:00:18]} Kxe7 {[%emt 0:00:17]} 19. Bxc6 {[%emt 0:00:38]} bxc6 {[%emt 0:00:03]} 20. Rb7+ {[%emt 0:00:01]} Kf6 {[%emt 0:00:22]} 21. Ne4+ {[%emt 0:00:03]} Kg7 {[%emt 0:00:03]} 22. Nd6 {[%emt 0:00:43]} Bxa2 {[%emt 0:00:47]} 23. c4 {[%emt 0:00:18]} Rgd8 {[%emt 0:00:52]} 24. Nxf7 {[%emt 0:00:29]} Rdb8 {[%emt 0:01:12]} 25. Rc7 {[%emt 0:00:21]} Rb1 {[%emt 0:00:30]} 26. Ne5+ {[%emt 0:00:23]} Kg8 {[%emt 0:00:18]} 27. Rxb1 {[%emt 0:01:54]} Bxb1 {[%emt 0:00:00]} 28. Nd7 {[%emt 0:00:27]} a5 {[%emt 0:00:27]} 29. Nf6+ {[%emt 0:00:21]} Kf8 {[%emt 0:00:02]} 30. Rxh7 {[%emt 0:00:16]} Ra6 {[%emt 0:01:13]} 31. Rb7 {[%emt 0:01:00]} Bc2 {[%emt 0:01:00]} 32. Nd7+ {[%emt 0:00:09]} Kg8 {[%emt 0:00:03]} 33. Nc5 {[%emt 0:00:23]} Ra8 {[%emt 0:00:03]} 34. Rb2 {[%emt 0:00:07]} Bf5 {[%emt 0:00:25]} 35. Ra2 {[%emt 0:00:06]} Kf7 {[%emt 0:00:17]} 36. f3 {[%emt 0:00:07]} Kf6 {[%emt 0:00:03]} 37. g4 {[%emt 0:00:07]} Be6 {[%emt 0:00:07]} 38. Ra4 {[%emt 0:00:04]} g5 {[%emt 0:01:01]} 39. Kf2 {[%emt 0:00:02]} Ke5 {[%emt 0:00:04]} 40. Ke3 {[%emt 0:00:03]} Kd6 {[%emt 0:00:25]} 41. Kd4 {[%emt 0:00:08]} Rh8 {[%emt 0:00:20]} 42. Nxe6 {[%emt 0:00:06]} Kxe6 {[%emt 0:00:02]} 43. Rxa5 {[%emt 0:00:01]} Rxh2 {[%emt 0:00:10]} 44. Rxg5 {[%emt 0:00:03]} 1-0

[Event "European Online Club-ch-C 2021"]
[Site "Online"]
[Date "2021.03.27"]
[Round "3.12"]
[White "Schlueter, Yves"]
[Black "Guerrero Olmos, Sergio"]
[Result "0-1"]
[ECO "A26"]
[WhiteElo "2058"]
[BlackElo "2372"]
[Annotator "NA"]
[PlyCount "62"]
[EventDate "2021.03.27"]
[EventType "team-tourn"]
[EventCountry "NET"]
[SourceTitle "playchess.com"]
[Source "ChessBase"]
[SourceQuality "1"]
[TimeControl "900+5"]

1. c4 {[%emt 0:00:00]} Nc6 {[%emt 0:00:07]} 2. Nc3 {[%emt 0:00:03]} e5 {[%emt 0:00:02]} 3. g3 {[%emt 0:00:04]} g6 {[%emt 0:00:01]} 4. Bg2 {[%emt 0:00:02]} Bg7 {[%emt 0:00:01]} 5. d3 {[%emt 0:00:02]} d6 {[%emt 0:00:02]} 6. Nf3 {[%emt 0:00:03]} h6 {[%emt 0:00:05]} 7. O-O {[%emt 0:00:03]} Be6 {[%emt 0:00:05]} 8. Rb1 {[%emt 0:00:02]} Qd7 {[%emt 0:00:03]} 9. Bd2 {[%emt 0:00:03]} Nge7 {[%emt 0:00:06]} 10. b4 {[%emt 0:00:07]} Bh3 {[%emt 0:00:04]} 11. b5 {[%emt 0:00:04]} Nd8 {[%emt 0:00:04]} 12. a4 {[%emt 0:00:17]} O-O {[%emt 0:00:12]} 13. Nd5 {[%emt 0:00:58]} Bxg2 {[%emt 0:00:29]} 14. Kxg2 {[%emt 0:00:36]} f5 {[%emt 0:00:08]} 15. Nxe7+ {[%emt 0:00:22]} Qxe7 {[%emt 0:00:02]} 16. Qb3 {[%emt 0:00:09]} Kh7 {[%emt 0:00:32]} 17. e4 {[%emt 0:01:59]} Ne6 {[%emt 0:00:09]} 18. Rbe1 {[%emt 0:00:47]} f4 {[%emt 0:00:38]} 19. g4 {[%emt 0:00:31]} h5 {[%emt 0:01:51]} 20. h3 {[%emt 0:00:05]} Qd7 {[%emt 0:00:37]} 21. Qd1 {[%emt 0:01:42]} Bf6 {[%emt 0:00:24]} 22. Rh1 {[%emt 0:02:27]} a6 {[%emt 0:00:41]} 23. Reg1 {[%emt 0:00:27]} axb5 {[%emt 0:00:18]} 24. axb5 {[%emt 0:00:05]} Ra3 {[%emt 0:00:20]} 25. Bb4 {[%emt 0:00:25]} Ra2 {[%emt 0:00:16]} 26. Kf1 {[%emt 0:01:57]} Rfa8 {[%emt 0:00:12]} 27. Bc3 {[%emt 0:00:30]} R8a3 {[%emt 0:00:46]} 28. gxh5 {[%emt 0:00:35]} Rxc3 {[%emt 0:00:40]} 29. hxg6+ {[%emt 0:00:19]} Kg8 {[%emt 0:00:12]} 30. Nd2 {[%emt 0:01:24]} Rxd3 {[%emt 0:00:14]} 31. Qh5 {[%emt 0:00:13]} Rdxd2 {[%emt 0:00:13]} 0-1

[Event "European Online Club-ch-C 2021"]
[Site "Online"]
[Date "2021.03.27"]
[Round "3.13"]
[White "Babula, Vlastimil"]
[Black "Braun, Christian"]
[Result "1/2-1/2"]
[ECO "E95"]
[WhiteElo "2559"]
[BlackElo "2409"]
[Annotator "ChessBase"]
[PlyCount "85"]
[EventDate "2021.03.27"]
[EventType "team-tourn"]
[EventCountry "NET"]
[SourceTitle "playchess.com"]
[Source "ChessBase"]
[SourceQuality "1"]
[TimeControl "900+5"]

1. d4 {[%emt 0:00:00]} Nf6 {[%emt 0:00:08]} 2. c4 {[%emt 0:00:04]} g6 {[%emt 0:00:01]} 3. Nc3 {[%emt 0:00:03]} Bg7 {[%emt 0:00:02]} 4. e4 {[%emt 0:00:01]} d6 {[%emt 0:00:01]} 5. Nf3 {[%emt 0:00:02]} O-O {[%emt 0:00:02]} 6. Be2 {[%emt 0:00:04]} e5 {[%emt 0:00:02]} 7. O-O {[%emt 0:00:02]} Nbd7 {[%emt 0:00:02]} 8. Re1 {[%emt 0:00:05]} Qe7 {[%emt 0:00:05]} 9. Bf1 {[%emt 0:00:14]} c6 {[%emt 0:00:03]} 10. Rb1 {[%emt 0:00:16]} Re8 {[%emt 0:00:17]} 11. d5 {[%emt 0:00:04]} c5 {[%emt 0:00:04]} 12. Bg5 {[%emt 0:00:12]} a6 {[%emt 0:00:26]} 13. Nd2 {[%emt 0:00:21]} Rf8 {[%emt 0:00:04]} 14. a3 {[%emt 0:00:15]} Qe8 {[%emt 0:00:09]} 15. b4 {[%emt 0:00:16]} h6 {[%emt 0:00:14]} 16. Be3 {[%emt 0:00:08]} h5 {[%emt 0:00:02]} 17. f3 {[%emt 0:00:46]} Nh7 {[%emt 0:00:36]} 18. a4 {[%emt 0:01:06]} f5 {[%emt 0:01:18]} 19. a5 {[%emt 0:00:08]} Qe7 {[%emt 0:00:19]} 20. Na4 {[%emt 0:00:08]} cxb4 {[%emt 0:01:34]} 21. Qb3 {[%emt 0:00:46]} f4 {[%emt 0:01:37]} 22. Bf2 {[%emt 0:00:04]} g5 {[%emt 0:00:01]} 23. c5 {[%emt 0:00:07]} g4 {[%emt 0:00:13]} 24. c6 {[%emt 0:00:24]} g3 {[%emt 0:00:51]} 25. hxg3 {[%emt 0:00:13]} fxg3 {[%emt 0:00:00]} 26. Bxg3 {[%emt 0:00:05]} Qg5 {[%emt 0:00:14]} 27. Bf2 {[%emt 0:01:06]} Ndf6 {[%emt 0:00:51]} 28. cxb7 {[%emt 0:00:40]} Bxb7 {[%emt 0:00:10]} 29. Nc4 {[%emt 0:00:05]} Qg6 {[%emt 0:01:23]} 30. Nxd6 {[%emt 0:00:38]} Ng5 {[%emt 0:00:15]} 31. Nf5 {[%emt 0:01:01]} Rf7 {[%emt 0:02:03]} 32. Kh1 {[%emt 0:00:14]} Bxd5 {[%emt 0:00:26]} 33. Qxb4 {[%emt 0:02:29]} Bf8 {[%emt 0:00:32]} 34. Qb6 {[%emt 0:00:51]} Ngxe4 {[%emt 0:02:33]} 35. fxe4 {[%emt 0:00:13]} Bxe4 {[%emt 0:00:00]} 36. Rxe4 {[%emt 0:00:34]} Qxf5 {[%emt 0:00:02]} 37. Ree1 {[%emt 0:02:06]} Nd7 {[%emt 0:00:45]} 38. Qb3 {[%emt 0:01:53]} Qxf2 {[%emt 0:00:07]} 39. Bc4 {[%emt 0:00:03]} Qh4+ {[%emt 0:00:02]} 40. Kg1 {[%emt 0:00:02]} Qf2+ {[%emt 0:00:02]} 41. Kh1 {[%emt 0:00:01]} Qh4+ {[%emt 0:00:02]} 42. Kg1 {[%emt 0:00:02]} Qf2+ {[%emt 0:00:16]} 43. Kh1 {[%emt 0:00:02]} 1/2-1/2